[Event "Live Chess"]
[Site "Chess.com"]
[Date "2023.05.21"]
[Round "-"]
[White "Ferrarifan27"]
[Black "TheSmoulderingMaster"]
[Result "1-0"]
[WhiteElo "2097"]
[BlackElo "1721"]
[TimeControl "300"]
[EndTime "2:46:17 PDT"]
[Termination "Ferrarifan27 won by resignation"]

1. e4 {[%clk 0:04:59.3]} 1... c5 {[%clk 0:04:58.4]} 2. Nf3 {[%clk 0:04:55.7]}
2... d6 {[%clk 0:04:57.5]} 3. d4 {[%clk 0:04:54]} 3... cxd4 {[%clk 0:04:56.7]}
4. Nxd4 {[%clk 0:04:51.5]} 4... Nf6 {[%clk 0:04:55.9]} 5. Nc3 {[%clk 0:04:50.1]}
5... g6 {[%clk 0:04:55]} 6. Nd5 {[%clk 0:04:45.8]} 6... Bg7 {[%clk 0:04:53.2]}
7. Nxf6+ {[%clk 0:04:44.1]} 7... Bxf6 {[%clk 0:04:51.8]} 8. Bh6 {[%clk
0:04:43.7]} 8... Nc6 {[%clk 0:04:49.4]} 9. c3 {[%clk 0:04:40.8]} 9... Qb6 {[%clk
0:04:46.1]} 10. Nxc6 {[%clk 0:04:36.7]} 10... bxc6 {[%clk 0:04:45.2]} 11. Qd2
{[%clk 0:04:33.7]} 11... Rb8 {[%clk 0:04:39.3]} 12. b3 {[%clk 0:04:32.9]} 12...
Qa5 {[%clk 0:04:37.1]} 13. Rc1 {[%clk 0:04:31.1]} 13... Qe5 {[%clk 0:04:15.5]}
14. Bd3 {[%clk 0:04:25.6]} 14... Bf5 {[%clk 0:04:10.6]} 15. f4 {[%clk
0:04:10.4]} 15... Qe6 {[%clk 0:03:54.9]} 16. O-O {[%clk 0:04:08.1]} 16... Bxe4
{[%clk 0:03:49.8]} 17. Rfe1 {[%clk 0:04:06]} 17... d5 {[%clk 0:03:48.3]} 18. c4
{[%clk 0:03:57.7]} 18... Rd8 {[%clk 0:03:44.7]} 19. cxd5 {[%clk 0:03:55.6]}
19... cxd5 {[%clk 0:03:44]} 20. Bb5+ {[%clk 0:03:46]} 1-0

[Event "Live Chess"]
[Site "Chess.com"]
[Date "2023.05.21"]
[Round "-"]
[White "smoggyrabbit"]
[Black "Mugzwang"]
[Result "1-0"]
[WhiteElo "1707"]
[BlackElo "1524"]
[TimeControl "300"]
[EndTime "2:46:39 PDT"]
[Termination "smoggyrabbit won on time"]

1. d4 {[%clk 0:04:59.5]} 1... d5 {[%clk 0:04:56.7]} 2. Nf3 {[%clk 0:04:58.6]}
2... Nf6 {[%clk 0:04:54.7]} 3. e3 {[%clk 0:04:57.6]} 3... c5 {[%clk 0:04:52.4]}
4. b3 {[%clk 0:04:55.5]} 4... Nc6 {[%clk 0:04:52]} 5. Bd3 {[%clk 0:04:52.4]}
5... Bg4 {[%clk 0:04:44.3]} 6. Nbd2 {[%clk 0:04:49.9]} 6... e6 {[%clk 0:04:43]}
7. Bb2 {[%clk 0:04:47.4]} 7... cxd4 {[%clk 0:04:39.7]} 8. exd4 {[%clk
0:04:45.2]} 8... Bb4 {[%clk 0:04:36.9]} 9. c3 {[%clk 0:04:39.8]} 9... Ba5 {[%clk
0:04:33]} 10. O-O {[%clk 0:04:38.7]} 10... O-O {[%clk 0:04:27.2]} 11. h3 {[%clk
0:04:30.8]} 11... Bxf3 {[%clk 0:04:18.1]} 12. Nxf3 {[%clk 0:04:30.7]} 12... Rc8
{[%clk 0:04:07.9]} 13. c4 {[%clk 0:04:20.2]} 13... dxc4 {[%clk 0:03:59.5]} 14.
bxc4 {[%clk 0:04:20.1]} 14... Nb4 {[%clk 0:03:18.4]} 15. a3 {[%clk 0:03:55.7]}
15... Nxd3 {[%clk 0:03:16.3]} 16. Qxd3 {[%clk 0:03:55.6]} 16... Qc7 {[%clk
0:03:05.9]} 17. Rac1 {[%clk 0:03:44.1]} 17... Rfd8 {[%clk 0:03:01]} 18. d5
{[%clk 0:03:35.8]} 18... exd5 {[%clk 0:02:45.3]} 19. Bxf6 {[%clk 0:03:27.4]}
19... gxf6 {[%clk 0:02:26.5]} 20. c5 {[%clk 0:02:20.5]} 20... Qe7 {[%clk
0:02:05.5]} 21. Nd4 {[%clk 0:02:00.8]} 21... Qe4 {[%clk 0:01:28.5]} 22. Qxe4
{[%clk 0:01:36]} 22... dxe4 {[%clk 0:01:26.3]} 23. Nf5 {[%clk 0:01:35.1]} 23...
Bd2 {[%clk 0:00:59.9]} 24. Rc2 {[%clk 0:01:22.2]} 24... Rc7 {[%clk 0:00:38.4]}
25. Rd1 {[%clk 0:01:15.8]} 25... Rcd7 {[%clk 0:00:17.5]} 26. Nd6 {[%clk
0:01:02.9]} 26... Bf4 {[%clk 0:00:12.3]} 27. Rd4 {[%clk 0:00:48.1]} 27... Bxd6
{[%clk 0:00:11.1]} 28. cxd6 {[%clk 0:00:46.8]} 28... Rxd6 {[%clk 0:00:10.1]} 29.
Rxe4 {[%clk 0:00:44.3]} 29... Rd1+ {[%clk 0:00:08.6]} 30. Kh2 {[%clk 0:00:42.8]}
30... R1d2 {[%clk 0:00:08.2]} 31. Re8+ {[%clk 0:00:34.6]} 31... Rxe8 {[%clk
0:00:05]} 32. Rxd2 {[%clk 0:00:33.6]} 32... Kf8 {[%clk 0:00:04]} 33. Rd7 {[%clk
0:00:32.1]} 33... Re7 {[%clk 0:00:02.6]} 34. Rd8+ {[%clk 0:00:30.7]} 34... Re8
{[%clk 0:00:01.3]} 35. Rd6 {[%clk 0:00:29.3]} 35... Re6 {[%clk 0:00:00.1]} 36.
Rd4 {[%clk 0:00:26.9]} 1-0

[Event "Live Chess"]
[Site "Chess.com"]
[Date "2023.05.21"]
[Round "-"]
[White "Tech_Titan"]
[Black "stevochess11"]
[Result "0-1"]
[WhiteElo "1115"]
[BlackElo "1731"]
[TimeControl "300"]
[EndTime "2:46:56 PDT"]
[Termination "stevochess11 won by resignation"]

1. c4 {[%clk 0:04:57.6]} 1... c5 {[%clk 0:04:58.7]} 2. Nc3 {[%clk 0:04:56.1]}
2... Nf6 {[%clk 0:04:57.4]} 3. e4 {[%clk 0:04:54.9]} 3... d6 {[%clk 0:04:53.9]}
4. Nf3 {[%clk 0:04:53.8]} 4... g6 {[%clk 0:04:50.9]} 5. d3 {[%clk 0:04:51.7]}
5... Bg7 {[%clk 0:04:49.8]} 6. Be2 {[%clk 0:04:50.6]} 6... Nc6 {[%clk
0:04:47.5]} 7. O-O {[%clk 0:04:49.5]} 7... O-O {[%clk 0:04:45.6]} 8. Bg5 {[%clk
0:04:47.7]} 8... Bg4 {[%clk 0:04:44]} 9. h3 {[%clk 0:04:43.4]} 9... Bxf3 {[%clk
0:04:40.9]} 10. Bxf3 {[%clk 0:04:42.4]} 10... Nd4 {[%clk 0:04:40.1]} 11. Re1
{[%clk 0:04:34]} 11... Ne6 {[%clk 0:04:38.3]} 12. Bxf6 {[%clk 0:04:32.1]} 12...
Bxf6 {[%clk 0:04:37.4]} 13. Nd5 {[%clk 0:04:25]} 13... Bxb2 {[%clk 0:04:31.3]}
14. Rb1 {[%clk 0:04:22]} 14... Bg7 {[%clk 0:04:25.4]} 15. Rxb7 {[%clk
0:04:16.8]} 15... Re8 {[%clk 0:04:18.4]} 16. Bg4 {[%clk 0:04:10.4]} 16... Nd4
{[%clk 0:04:16.3]} 17. Nc7 {[%clk 0:04:04.6]} 17... f5 {[%clk 0:04:04.5]} 18.
Nxa8 {[%clk 0:03:59.6]} 18... Qxa8 {[%clk 0:04:03]} 19. Rxa7 {[%clk 0:03:35.8]}
19... Qxa7 {[%clk 0:03:59.7]} 20. exf5 {[%clk 0:03:34.9]} 20... gxf5 {[%clk
0:03:58.1]} 21. Bf3 {[%clk 0:03:31.1]} 21... Qxa2 {[%clk 0:03:44.2]} 22. Bc6
{[%clk 0:03:13.9]} 22... Nxc6 {[%clk 0:03:41.2]} 0-1

[Event "Live Chess"]
[Site "Chess.com"]
[Date "2023.05.21"]
[Round "-"]
[White "domrobson"]
[Black "LiamClery2020"]
[Result "0-1"]
[WhiteElo "1696"]
[BlackElo "1989"]
[TimeControl "300"]
[EndTime "2:47:05 PDT"]
[Termination "LiamClery2020 won by resignation"]

1. d4 {[%clk 0:04:56.6]} 1... Nf6 {[%clk 0:04:59.9]} 2. c4 {[%clk 0:04:55.2]}
2... g6 {[%clk 0:04:58.9]} 3. Nc3 {[%clk 0:04:54.4]} 3... d5 {[%clk 0:04:58.4]}
4. cxd5 {[%clk 0:04:53.3]} 4... Nxd5 {[%clk 0:04:58.3]} 5. e4 {[%clk 0:04:52.8]}
5... Nxc3 {[%clk 0:04:57.8]} 6. bxc3 {[%clk 0:04:52.7]} 6... Bg7 {[%clk
0:04:57.7]} 7. Nf3 {[%clk 0:04:51.9]} 7... c5 {[%clk 0:04:57.1]} 8. Be2 {[%clk
0:04:51.2]} 8... Bg4 {[%clk 0:04:56]} 9. O-O {[%clk 0:04:50.2]} 9... Bxf3 {[%clk
0:04:54.8]} 10. Bxf3 {[%clk 0:04:48.4]} 10... cxd4 {[%clk 0:04:54.7]} 11. e5
{[%clk 0:04:40.9]} 11... Nc6 {[%clk 0:04:50.7]} 12. Qa4 {[%clk 0:04:35.5]} 12...
O-O {[%clk 0:04:49]} 13. Bxc6 {[%clk 0:04:32.6]} 13... bxc6 {[%clk 0:04:47.5]}
14. Qxc6 {[%clk 0:04:32.2]} 14... Bxe5 {[%clk 0:04:44.1]} 15. cxd4 {[%clk
0:04:30.6]} 15... Qxd4 {[%clk 0:04:40.9]} 16. Be3 {[%clk 0:04:25.9]} 16... Qh4
{[%clk 0:04:32.6]} 17. g3 {[%clk 0:04:23.3]} 17... Qh5 {[%clk 0:04:21.7]} 18.
Rac1 {[%clk 0:04:19.5]} 18... Qf5 {[%clk 0:04:20.2]} 19. Rc5 {[%clk 0:04:06.8]}
19... Rac8 {[%clk 0:04:13.1]} 20. Qb5 {[%clk 0:04:00.5]} 20... Rxc5 {[%clk
0:04:11.7]} 21. Qxc5 {[%clk 0:03:59.4]} 21... Rc8 {[%clk 0:04:10.4]} 22. Qxe7
{[%clk 0:03:57.9]} 22... Rc7 {[%clk 0:04:04.7]} 23. Qd8+ {[%clk 0:03:49.1]}
23... Kg7 {[%clk 0:04:03.7]} 24. Bd4 {[%clk 0:03:47.4]} 24... Bxd4 {[%clk
0:03:58.5]} 25. Qxc7 {[%clk 0:03:43.1]} 25... Bb6 {[%clk 0:03:56.5]} 26. Qc3+
{[%clk 0:03:39.2]} 26... Kg8 {[%clk 0:03:55]} 27. Qd2 {[%clk 0:03:30.5]} 27...
Kg7 {[%clk 0:03:51.5]} 28. h4 {[%clk 0:03:22.1]} 28... Qf3 {[%clk 0:03:48.6]}
29. Rc1 {[%clk 0:03:05.2]} 29... Qxg3+ {[%clk 0:03:46.9]} 30. Kf1 {[%clk
0:03:03.2]} 30... Qh3+ {[%clk 0:03:45.2]} 31. Ke2 {[%clk 0:02:58.8]} 31... Qg4+
{[%clk 0:03:43.8]} 32. Kf1 {[%clk 0:02:57]} 32... Qh3+ {[%clk 0:03:40.9]} 33.
Ke2 {[%clk 0:02:55.4]} 33... Qxh4 {[%clk 0:03:38.9]} 34. Qc3+ {[%clk 0:02:52]}
34... Bd4 {[%clk 0:03:38.1]} 35. Qg3 {[%clk 0:02:49.1]} 35... Qe4+ {[%clk
0:03:36.6]} 36. Kd1 {[%clk 0:02:42.1]} 36... h5 {[%clk 0:03:29.9]} 37. Rc2
{[%clk 0:02:38.4]} 37... Qh1+ {[%clk 0:03:27.3]} 38. Kd2 {[%clk 0:02:33.5]}
38... h4 {[%clk 0:03:21.7]} 39. Qf4 {[%clk 0:02:25]} 39... Bf6 {[%clk
0:03:19.7]} 40. f3 {[%clk 0:02:09.3]} 40... Qg1 {[%clk 0:03:14]} 41. Rc6 {[%clk
0:02:00.3]} 41... Bg5 {[%clk 0:03:12.7]} 0-1

[Event "Live Chess"]
[Site "Chess.com"]
[Date "2023.05.21"]
[Round "-"]
[White "WelshTiger"]
[Black "raminguy"]
[Result "1-0"]
[WhiteElo "2340"]
[BlackElo "1955"]
[TimeControl "300"]
[EndTime "2:47:08 PDT"]
[Termination "WelshTiger won on time"]

1. e4 {[%clk 0:04:58.1]} 1... e5 {[%clk 0:04:59.4]} 2. Nf3 {[%clk 0:04:55.6]}
2... Nc6 {[%clk 0:04:59.3]} 3. d4 {[%clk 0:04:54]} 3... exd4 {[%clk 0:04:58.3]}
4. Bc4 {[%clk 0:04:53.2]} 4... Nf6 {[%clk 0:04:56.8]} 5. e5 {[%clk 0:04:51.2]}
5... d5 {[%clk 0:04:56.5]} 6. Bb5 {[%clk 0:04:50.1]} 6... Ne4 {[%clk 0:04:54.8]}
7. Nxd4 {[%clk 0:04:49.3]} 7... Bd7 {[%clk 0:04:45.7]} 8. Bxc6 {[%clk
0:04:47.8]} 8... bxc6 {[%clk 0:04:44]} 9. O-O {[%clk 0:04:47.1]} 9... Bc5 {[%clk
0:04:33]} 10. f3 {[%clk 0:04:45.8]} 10... Ng5 {[%clk 0:04:27.8]} 11. Be3 {[%clk
0:04:45]} 11... O-O {[%clk 0:04:21.3]} 12. f4 {[%clk 0:04:44.1]} 12... Ne6
{[%clk 0:04:16.7]} 13. f5 {[%clk 0:04:38.7]} 13... Ng5 {[%clk 0:04:03.9]} 14. f6
{[%clk 0:04:33.8]} 14... Ne4 {[%clk 0:04:02.7]} 15. Nd2 {[%clk 0:04:19.3]} 15...
Kh8 {[%clk 0:03:42.1]} 16. Nxe4 {[%clk 0:04:17.9]} 16... dxe4 {[%clk 0:03:39.9]}
17. Qd2 {[%clk 0:04:06.5]} 17... gxf6 {[%clk 0:03:34.4]} 18. exf6 {[%clk
0:03:48.5]} 18... Rg8 {[%clk 0:03:30.5]} 19. Qc3 {[%clk 0:03:40.5]} 19... Bb6
{[%clk 0:03:05]} 20. Rf2 {[%clk 0:03:37.4]} 20... Qe8 {[%clk 0:02:43]} 21. Re1
{[%clk 0:03:30.6]} 21... Rg6 {[%clk 0:02:35.5]} 22. Ne2 {[%clk 0:03:12.7]} 22...
Bxe3 {[%clk 0:02:16]} 23. Qxe3 {[%clk 0:03:11.2]} 23... Qe5 {[%clk 0:02:13.2]}
24. Qd4 {[%clk 0:03:06.4]} 24... Qd6 {[%clk 0:01:59.6]} 25. Rd1 {[%clk 0:02:48]}
25... Qxd4 {[%clk 0:01:56.6]} 26. Rxd4 {[%clk 0:02:47]} 26... Be6 {[%clk
0:01:53.4]} 27. Rxe4 {[%clk 0:02:44.7]} 27... Rag8 {[%clk 0:01:50.4]} 28. g3
{[%clk 0:02:30.6]} 28... Bd5 {[%clk 0:01:44.4]} 29. Re7 {[%clk 0:02:23.3]} 29...
Rg4 {[%clk 0:01:33.7]} 30. Nf4 {[%clk 0:02:19.7]} 30... Bxa2 {[%clk 0:01:26.2]}
31. b3 {[%clk 0:02:18.3]} 31... Bb1 {[%clk 0:01:24.5]} 32. Rxf7 {[%clk 0:02:13]}
32... Bxc2 {[%clk 0:01:22.1]} 33. b4 {[%clk 0:02:01.6]} 33... Be4 {[%clk
0:01:09.1]} 34. Rxc7 {[%clk 0:02:00.4]} 34... Rd8 {[%clk 0:01:02.2]} 35. f7
{[%clk 0:01:38.7]} 35... Rd1+ {[%clk 0:00:17.4]} 36. Rf1 {[%clk 0:01:36.4]}
36... Rxf1+ {[%clk 0:00:15.1]} 37. Kxf1 {[%clk 0:01:33.8]} 37... Rxf4+ {[%clk
0:00:08.2]} 38. gxf4 {[%clk 0:01:32.4]} 38... Kg7 {[%clk 0:00:07.8]} 39. Rxa7
{[%clk 0:01:29.4]} 39... Bd5 {[%clk 0:00:05.7]} 40. Rc7 {[%clk 0:01:28]} 40...
Kf8 {[%clk 0:00:03.8]} 41. Kf2 {[%clk 0:01:26.7]} 41... Bh1 {[%clk 0:00:00.2]}
42. Ke3 {[%clk 0:01:24.9]} 1-0

[Event "Live Chess"]
[Site "Chess.com"]
[Date "2023.05.21"]
[Round "-"]
[White "Pablo_dmp"]
[Black "Berdgross"]
[Result "1-0"]
[WhiteElo "1856"]
[BlackElo "663"]
[TimeControl "300"]
[EndTime "2:47:09 PDT"]
[Termination "Pablo_dmp won by resignation"]

1. e4 {[%clk 0:04:58.8]} 1... e5 {[%clk 0:04:57.4]} 2. Nc3 {[%clk 0:04:57.4]}
2... d6 {[%clk 0:04:56.6]} 3. Bc4 {[%clk 0:04:55.9]} 3... Be6 {[%clk 0:04:54.4]}
4. Qe2 {[%clk 0:04:49.8]} 4... Bxc4 {[%clk 0:04:51.8]} 5. Qxc4 {[%clk
0:04:49.7]} 5... Nc6 {[%clk 0:04:49.4]} 6. d3 {[%clk 0:04:46.6]} 6... Nd4 {[%clk
0:04:46.9]} 7. Nd5 {[%clk 0:04:28.4]} 7... Nxc2+ {[%clk 0:04:32.5]} 8. Qxc2
{[%clk 0:04:26.4]} 8... Nf6 {[%clk 0:04:26.8]} 9. Nxc7+ {[%clk 0:04:24.5]} 9...
Kd7 {[%clk 0:04:18.7]} 10. Nxa8 {[%clk 0:04:24.4]} 10... Ke7 {[%clk 0:04:17.4]}
11. Nc7 {[%clk 0:04:21.9]} 1-0

[Event "Live Chess"]
[Site "Chess.com"]
[Date "2023.05.21"]
[Round "-"]
[White "RockTroll"]
[Black "chessfiction"]
[Result "0-1"]
[WhiteElo "2205"]
[BlackElo "2342"]
[TimeControl "300"]
[EndTime "2:47:36 PDT"]
[Termination "chessfiction won by resignation"]

1. Nf3 {[%clk 0:04:57.9]} 1... e5 {[%clk 0:04:58.6]} 2. Nxe5 {[%clk 0:04:55.2]}
2... Nc6 {[%clk 0:04:58.1]} 3. Nf3 {[%clk 0:04:53.9]} 3... g5 {[%clk 0:04:56.7]}
4. d4 {[%clk 0:04:51.7]} 4... g4 {[%clk 0:04:55.5]} 5. Ng1 {[%clk 0:04:51.3]}
5... d5 {[%clk 0:04:53.5]} 6. Bf4 {[%clk 0:04:48.9]} 6... Bg7 {[%clk 0:04:52.3]}
7. e3 {[%clk 0:04:47.5]} 7... Qe7 {[%clk 0:04:50.9]} 8. Bb5 {[%clk 0:04:39.7]}
8... Bd7 {[%clk 0:04:49.2]} 9. Nd2 {[%clk 0:04:32.8]} 9... Bxd4 {[%clk
0:04:42.3]} 10. c3 {[%clk 0:04:26.6]} 10... Bg7 {[%clk 0:04:41]} 11. Ne2 {[%clk
0:04:25.3]} 11... Nf6 {[%clk 0:04:39.6]} 12. Qb3 {[%clk 0:04:12.4]} 12... a6
{[%clk 0:04:15.7]} 13. Bxc6 {[%clk 0:04:07.4]} 13... Bxc6 {[%clk 0:04:15.6]} 14.
Nd4 {[%clk 0:04:06.3]} 14... Bd7 {[%clk 0:04:13.6]} 15. Qxb7 {[%clk 0:04:04.5]}
15... O-O {[%clk 0:04:11]} 16. Qxc7 {[%clk 0:04:03]} 16... Rfe8 {[%clk
0:03:57.9]} 17. Qd6 {[%clk 0:03:55.1]} 17... Qd8 {[%clk 0:03:52.7]} 18. O-O
{[%clk 0:03:44.1]} 18... Rc8 {[%clk 0:03:50.7]} 19. Qxa6 {[%clk 0:03:41.5]}
19... Qe7 {[%clk 0:03:33.3]} 20. Qd3 {[%clk 0:03:35.1]} 20... Ne4 {[%clk
0:03:32]} 21. Nxe4 {[%clk 0:03:30.9]} 21... dxe4 {[%clk 0:03:31.9]} 22. Qe2
{[%clk 0:03:23.6]} 22... f5 {[%clk 0:03:29.9]} 23. a4 {[%clk 0:03:13.6]} 23...
h5 {[%clk 0:03:26]} 24. a5 {[%clk 0:03:12]} 24... h4 {[%clk 0:03:25.3]} 25. a6
{[%clk 0:03:10.8]} 25... Ra8 {[%clk 0:03:23.6]} 26. a7 {[%clk 0:03:09.1]} 26...
Qc5 {[%clk 0:03:19.8]} 27. Qa6 {[%clk 0:02:58.7]} 27... Rf8 {[%clk 0:02:44.5]}
28. Ra5 {[%clk 0:02:54.8]} 28... Qc8 {[%clk 0:02:36.9]} 29. Qxc8 {[%clk
0:02:46.1]} 29... Rfxc8 {[%clk 0:02:36.8]} 30. Bb8 {[%clk 0:02:37.6]} 30... Kf7
{[%clk 0:02:28.2]} 31. Nxf5 {[%clk 0:02:34.5]} 31... Bf8 {[%clk 0:02:20.2]} 32.
Nd4 {[%clk 0:02:28.8]} 32... Bc5 {[%clk 0:02:13.7]} 33. Rfa1 {[%clk 0:02:25.9]}
33... Ke7 {[%clk 0:02:05.1]} 34. b4 {[%clk 0:02:14.9]} 34... Bb6 {[%clk
0:02:00.7]} 35. Re5+ {[%clk 0:02:13.1]} 35... Kf6 {[%clk 0:01:58.9]} 36. Rxe4
{[%clk 0:02:10.5]} 36... Rcxb8 {[%clk 0:01:55.5]} 37. Rf4+ {[%clk 0:01:46.4]}
37... Kg7 {[%clk 0:01:54.2]} 38. Nf5+ {[%clk 0:01:32.7]} 38... Bxf5 {[%clk
0:01:53]} 39. Rxf5 {[%clk 0:01:32.2]} 39... Rxa7 {[%clk 0:01:47.6]} 40. Rxa7+
{[%clk 0:01:30]} 40... Bxa7 {[%clk 0:01:47.5]} 41. Rg5+ {[%clk 0:01:29.3]} 41...
Kf6 {[%clk 0:01:46.5]} 42. Rxg4 {[%clk 0:01:28.9]} 42... Rd8 {[%clk 0:01:42.8]}
43. g3 {[%clk 0:01:22.9]} 43... h3 {[%clk 0:01:41.1]} 44. Kf1 {[%clk 0:01:18.5]}
44... Rd1+ {[%clk 0:01:38.1]} 45. Ke2 {[%clk 0:01:17.8]} 45... Rh1 {[%clk
0:01:38]} 46. Rh4 {[%clk 0:01:12.8]} 46... Rxh2 {[%clk 0:01:37]} 47. Kf3 {[%clk
0:01:11.2]} 47... Rh1 {[%clk 0:01:30.5]} 48. g4 {[%clk 0:01:08.5]} 48... Bb8
{[%clk 0:01:25.7]} 49. c4 {[%clk 0:00:59.6]} 49... h2 {[%clk 0:01:23.6]} 50. c5
{[%clk 0:00:48.3]} 0-1

[Event "Live Chess"]
[Site "Chess.com"]
[Date "2023.05.21"]
[Round "-"]
[White "Biranidun"]
[Black "hunany_3"]
[Result "1-0"]
[WhiteElo "2553"]
[BlackElo "1719"]
[TimeControl "300"]
[EndTime "2:47:41 PDT"]
[Termination "Biranidun won by resignation"]

1. e4 {[%clk 0:04:58.7]} 1... e5 {[%clk 0:04:57.7]} 2. Nf3 {[%clk 0:04:57.4]}
2... Nc6 {[%clk 0:04:56.9]} 3. Bc4 {[%clk 0:04:56.6]} 3... Bc5 {[%clk 0:04:55]}
4. c3 {[%clk 0:04:55.4]} 4... Nf6 {[%clk 0:04:53.5]} 5. d4 {[%clk 0:04:53.6]}
5... exd4 {[%clk 0:04:48.2]} 6. b4 {[%clk 0:04:52.6]} 6... Bb6 {[%clk
0:04:46.4]} 7. e5 {[%clk 0:04:51.5]} 7... Qe7 {[%clk 0:04:42.6]} 8. O-O {[%clk
0:04:48.4]} 8... Ng4 {[%clk 0:04:23.3]} 9. Bg5 {[%clk 0:04:44]} 9... Qf8 {[%clk
0:04:09.9]} 10. cxd4 {[%clk 0:04:42.6]} 10... h6 {[%clk 0:04:04.5]} 11. Be3
{[%clk 0:04:28.6]} 11... d6 {[%clk 0:03:47.5]} 12. exd6 {[%clk 0:04:12.7]} 12...
Qxd6 {[%clk 0:03:47.4]} 13. b5 {[%clk 0:03:40.1]} 13... Ne7 {[%clk 0:03:35.6]}
14. Nbd2 {[%clk 0:03:34.7]} 14... O-O {[%clk 0:03:30.6]} 15. Qb3 {[%clk
0:03:23.1]} 15... Nxe3 {[%clk 0:03:25.3]} 16. fxe3 {[%clk 0:03:21.9]} 16... Be6
{[%clk 0:03:17.7]} 17. a4 {[%clk 0:03:07.4]} 17... c6 {[%clk 0:03:03.5]} 18. Ne4
{[%clk 0:02:59.9]} 18... Bxc4 {[%clk 0:02:48]} 19. Qxc4 {[%clk 0:02:59.8]} 19...
Qd5 {[%clk 0:02:47]} 20. Qd3 {[%clk 0:02:50.7]} 20... Rfe8 {[%clk 0:02:34.3]}
21. Ne5 {[%clk 0:02:45]} 21... f6 {[%clk 0:02:22.7]} 22. Rxf6 {[%clk 0:02:41.4]}
22... c5 {[%clk 0:01:56.4]} 23. Rd6 {[%clk 0:02:39.2]} 23... c4 {[%clk
0:01:41.3]} 24. Nxc4 {[%clk 0:02:32.5]} 24... Qh5 {[%clk 0:01:35.1]} 25. Ng3
{[%clk 0:02:27.2]} 25... Qf7 {[%clk 0:01:30.4]} 26. Rf1 {[%clk 0:02:25.3]} 1-0

[Event "Live Chess"]
[Site "Chess.com"]
[Date "2023.05.21"]
[Round "-"]
[White "BostonStrangler"]
[Black "Pandreq"]
[Result "1-0"]
[WhiteElo "2068"]
[BlackElo "1234"]
[TimeControl "300"]
[EndTime "2:47:47 PDT"]
[Termination "BostonStrangler won by resignation"]

1. Nf3 {[%clk 0:04:57]} 1... d5 {[%clk 0:04:58.2]} 2. c4 {[%clk 0:04:54.7]} 2...
d4 {[%clk 0:04:54.2]} 3. g3 {[%clk 0:04:52]} 3... c5 {[%clk 0:04:49.8]} 4. b4
{[%clk 0:04:50.8]} 4... b6 {[%clk 0:04:46.5]} 5. Bg2 {[%clk 0:04:46.1]} 5... Bb7
{[%clk 0:04:43.6]} 6. Qb3 {[%clk 0:04:43.2]} 6... Nf6 {[%clk 0:04:37.7]} 7. bxc5
{[%clk 0:04:41.5]} 7... Qc7 {[%clk 0:04:16.6]} 8. cxb6 {[%clk 0:04:39.1]} 8...
axb6 {[%clk 0:04:10.1]} 9. O-O {[%clk 0:04:34.3]} 9... e5 {[%clk 0:04:04.4]} 10.
d3 {[%clk 0:04:30.3]} 10... Bc5 {[%clk 0:04:02.1]} 11. Ba3 {[%clk 0:04:27.2]}
11... Bc6 {[%clk 0:03:54.2]} 12. Bxc5 {[%clk 0:04:25.5]} 12... bxc5 {[%clk
0:03:52.7]} 13. Na3 {[%clk 0:04:25]} 13... O-O {[%clk 0:03:40.8]} 14. Nb5 {[%clk
0:04:23.7]} 14... Bxb5 {[%clk 0:03:37.3]} 15. Qxb5 {[%clk 0:04:22.3]} 15... Nbd7
{[%clk 0:03:27.7]} 16. Nd2 {[%clk 0:04:13.4]} 16... Rfb8 {[%clk 0:03:23.2]} 17.
Bxa8 {[%clk 0:04:09.3]} 17... Rxb5 {[%clk 0:03:21]} 18. cxb5 {[%clk 0:04:08.5]}
18... Qa5 {[%clk 0:03:15.9]} 19. Bf3 {[%clk 0:03:49.4]} 19... Qxd2 {[%clk
0:03:09.1]} 20. a4 {[%clk 0:03:49]} 20... Qa5 {[%clk 0:03:05.5]} 21. Rfb1 {[%clk
0:03:47]} 21... Nb6 {[%clk 0:03:03.6]} 22. Bc6 {[%clk 0:03:45]} 22... Nfd7
{[%clk 0:02:52]} 23. Bxd7 {[%clk 0:03:40.1]} 23... Nxd7 {[%clk 0:02:50.5]} 24.
b6 {[%clk 0:03:39.4]} 24... Nxb6 {[%clk 0:02:47.6]} 25. Rb5 {[%clk 0:03:38]}
25... Qc3 {[%clk 0:02:40]} 26. Rab1 {[%clk 0:03:36.1]} 26... g6 {[%clk
0:02:28.7]} 27. Rxb6 {[%clk 0:03:33.8]} 27... Kg7 {[%clk 0:02:27.7]} 28. R6b5
{[%clk 0:03:28.5]} 28... Qc2 {[%clk 0:02:24.6]} 29. a5 {[%clk 0:03:23.7]} 29...
Qxe2 {[%clk 0:02:22.9]} 30. a6 {[%clk 0:03:22.6]} 30... Qxd3 {[%clk 0:02:17.8]}
31. a7 {[%clk 0:03:18.8]} 31... Qe4 {[%clk 0:02:14.6]} 32. Rb7 {[%clk
0:03:16.4]} 32... d3 {[%clk 0:01:44.5]} 33. a8=Q {[%clk 0:03:15.3]} 33... d2
{[%clk 0:01:43.4]} 34. Rxf7+ {[%clk 0:03:11.6]} 1-0